[Event "Ebbe Cup 48"]
[Site "Goteborgs Schackcentrum, Vegatan 20, Gothenburg, Sweden"]
[Date "2025.02.16"]
[Round "4.10"]
[White "Hassinge, Ove"]
[Black "Gallon, John"]
[Result "0-1"]
[TimeControl "90 minutes + 30 seconds per move from move one"]
[WhiteFideId "1774530"]
[BlackFideId "1783661"]
[WhiteElo "1655"]
[BlackElo "1651"]

1. e4 {[%clk 01:30:56]} {[%emt 00:00:03]} c6 {[%clk 01:30:53]} {[%emt
00:00:07]} 2. d4 {[%clk 01:31:20]} {[%emt 00:00:06]} d5 {[%clk 01:31:16]}
{[%emt 00:00:08]} 3. f3 {[%clk 01:31:44]} {[%emt 00:00:06]} dxe4 {[%clk
01:28:14]} {[%emt 00:03:31]} 4. fxe4 {[%clk 01:29:23]} {[%emt 00:02:52]} e5
{[%clk 01:28:26]} {[%emt 00:00:17]} 5. Nf3 {[%clk 01:29:43]} {[%emt 00:00:10]}
Bg4 {[%clk 01:24:13]} {[%emt 00:04:44]} 6. Bc4 {[%clk 01:29:33]} {[%emt
00:00:40]} Bxf3 {[%clk 00:54:55]} {[%emt 00:29:47]} 7. Qxf3 {[%clk 01:29:23]}
{[%emt 00:00:40]} Qd7 {[%clk 00:53:43]} {[%emt 00:01:40]} 8. dxe5 {[%clk
01:23:23]} {[%emt 00:06:32]} Na6 {[%clk 00:42:05]} {[%emt 00:12:07]} 9. Be3
{[%clk 01:13:24]} {[%emt 00:10:30]} Bc5 {[%clk 00:34:57]} {[%emt 00:07:37]} 10.
O-O {[%clk 01:07:14]} {[%emt 00:06:42]} Bxe3+ {[%clk 00:23:50]} {[%emt
00:11:36]} 11. Qxe3 {[%clk 01:06:29]} {[%emt 00:01:15]} Nh6 {[%clk 00:23:54]}
{[%emt 00:00:26]} 12. Nc3 {[%clk 00:55:36]} {[%emt 00:11:24]} O-O {[%clk
00:20:56]} {[%emt 00:03:27]} 13. Rad1 {[%clk 00:52:27]} {[%emt 00:03:39]} Qe7
{[%clk 00:20:46]} {[%emt 00:00:40]} 14. Bxa6 {[%clk 00:42:34]} {[%emt
00:10:23]} bxa6 {[%clk 00:19:42]} {[%emt 00:01:34]} 15. Kh1 {[%clk 00:42:14]}
{[%emt 00:00:50]} Ng4 {[%clk 00:13:48]} {[%emt 00:06:22]} 16. Qf4 {[%clk
00:27:30]} {[%emt 00:15:16]} Nxe5 {[%clk 00:13:16]} {[%emt 00:01:01]} 17. b3
{[%clk 00:23:58]} {[%emt 00:04:03]} Rfd8 {[%clk 00:10:21]} {[%emt 00:03:24]} 18.
Rxd8+ {[%clk 00:18:46]} {[%emt 00:05:44]} Rxd8 {[%clk 00:10:35]} {[%emt
00:00:16]} 19. Rd1 {[%clk 00:18:52]} {[%emt 00:00:24]} Rxd1+ {[%clk 00:08:32]}
{[%emt 00:02:32]} 20. Nxd1 {[%clk 00:17:38]} {[%emt 00:01:44]} Qd6 {[%clk
00:07:43]} {[%emt 00:01:20]} 21. Qf1 {[%clk 00:10:43]} {[%emt 00:07:25]} Ng4
{[%clk 00:06:17]} {[%emt 00:01:56]} 22. g3 {[%clk 00:09:12]} {[%emt 00:02:01]}
Qxd1 {[%clk 00:06:33]} {[%emt 00:00:13]} 23. Qxd1 {[%clk 00:08:10]} {[%emt
00:01:32]} Nf2+ {[%clk 00:06:56]} {[%emt 00:00:08]} 24. Kg2 {[%clk 00:07:47]}
{[%emt 00:00:52]} Nxd1 {[%clk 00:07:21]} {[%emt 00:00:05]} 25. Kf3 {[%clk
00:08:08]} {[%emt 00:00:10]} Kf8 {[%clk 00:06:26]} {[%emt 00:01:24]} 26. e5
{[%clk 00:08:29]} {[%emt 00:00:09]} Ke7 {[%clk 00:06:34]} {[%emt 00:00:23]} 27.
Kf4 {[%clk 00:08:11]} {[%emt 00:00:48]} Nc3 {[%clk 00:06:07]} {[%emt 00:00:56]}
28. a4 {[%clk 00:08:21]} {[%emt 00:00:20]} Ke6 {[%clk 00:05:51]} {[%emt
00:00:46]} 29. g4 {[%clk 00:08:14]} {[%emt 00:00:38]} h6 {[%clk 00:04:47]}
{[%emt 00:01:34]} 30. h4 {[%clk 00:08:36]} {[%emt 00:00:08]} g6 {[%clk
00:04:45]} {[%emt 00:00:32]} 31. a5 {[%clk 00:08:31]} {[%emt 00:00:35]} c5
{[%clk 00:04:44]} {[%emt 00:00:30]} 32. Ke3 {[%clk 00:08:11]} {[%emt 00:00:50]}
Kxe5 {[%clk 00:04:53]} {[%emt 00:00:22]} 33. Kd3 {[%clk 00:08:30]} {[%emt
00:00:11]} Nd5 {[%clk 00:03:46]} {[%emt 00:01:35]} 34. c3 {[%emt 00:01:52]} Nc7
{[%clk 00:01:32]} {[%emt 00:01:25]} 35. c4 {[%clk 00:08:31]} {[%emt 00:00:27]}
Ne6 {[%clk 00:01:48]} {[%emt 00:00:10]} 36. Ke3 {[%clk 00:08:21]} {[%emt
00:00:45]} Nd4 {[%clk 00:02:01]} {[%emt 00:00:16]} 37. b4 {[%clk 00:08:42]}
{[%emt 00:00:10]} Nc2+ {[%clk 00:02:04]} {[%emt 00:00:27]} 0-1